bitfinex-derivatives/quotes_ETHF0:USTF0_20260123
["timestamp","ask_amount","ask_price","bid_price","bid_amount"]
[1769131306268,0.29796465,2959.3,2958.8,1.0061805]
[1769131306579,0.15351729,2959.4,2958.8,1.0061805]
[1769131306876,0.29795682,2959.3,2958.8,1.0061805]
[1769131307073,0.15351729,2959.4,2958.8,1.0061805]
[1769131307274,0.15859256,2959.8,2959.1,1.0061805]
[1769131307481,0.29792845,2959.7,2959.1,1.0061805]
[1769131307774,0.00507527,2959.8,2959.1,1.0061805]
[1769131312283,0.29795657,2959.7,2959.1,1.0061805]
[1769131312483,0.00507527,2959.8,2959.1,1.0061805]
[1769131312681,0.29795657,2959.7,2959.1,1.0061805]
[1769131312880,0.00507527,2959.8,2959.1,1.0061805]
[1769131313288,0.29796241,2959.7,2959.1,1.0061805]
[1769131313581,0.00507527,2959.8,2959.1,1.0061805]
[1769131313786,1.15442089,2959.7,2959.1,1.0061805]
[1769131313975,0.85645775,2959.6,2959.1,1.0061805]
[1769131314287,0.00507527,2959.8,2959.1,1.0061805]
[1769131314486,1.15444399,2959.7,2959.1,1.0061805]
[1769131314777,0.00129441,2959.9,2959.4,1.0061805]
[1769131314984,2.58741271,2960.4,2959.4,1.0061805]
[1769131315176,0.15351729,2960.3,2959.4,1.0061805]
[1769131322487,0.15351729,2960.3,2959.1,1.0061805]
[1769131322688,0.13878619,2960.2,2958.8,1.0061805]
[1769131323083,0.13878619,2960.1,2958.8,1.0061805]
[1769131323682,0.13878619,2959.9,2958.5,1.0061805]
[1769131326788,1.00334343,2959.8,2958.5,1.0061805]
[1769131326988,1.14879021,2959.7,2958.5,1.0061805]
[1769131327184,1.14879021,2959.6,2958.5,1.0061805]
[1769131327386,1.14879021,2959.5,2958.5,1.0061805]
[1769131327588,0.29580547,2959.4,2958.5,1.0061805]
[1769131327785,0.29580547,2959.3,2958.5,1.0061805]
[1769131328086,0.15035869,2959.8,2958.5,1.0061805]
[1769131328285,1.14884539,2959.7,2958.5,1.0061805]
[1769131328586,1.14884539,2959.6,2958.5,1.0061805]
[1769131328786,1.14884539,2959.5,2958.5,1.0061805]
[1769131329087,0.29581416,2959.4,2958.5,1.0061805]
[1769131329286,0.29582214,2959.3,2958.5,1.0061805]
[1769131329591,0.15035869,2959.8,2958.8,1.0061805]
[1769131329787,6.66706,2960.4,2959.4,1.0061805]
[1769131329788,0.15035869,2960.2,2959.4,1.0061805]
[1769131330785,2.43389542,2960.6,2959.4,1.0061805]
[1769131330786,0.15035869,2960.6,2959.4,1.0061805]
[1769131334892,0.15035869,2960.6,2958.9,1.14593447]
[1769131341888,1.29220613,2960.5,2958.9,1.14593447]
[1769131342092,1.14184744,2960.4,2958.9,1.14593447]
[1769131342298,1.14184744,2960.3,2958.9,1.14593447]
[1769131342496,1.14184744,2960.2,2958.9,1.14593447]
[1769131342698,1.14184744,2960.1,2958.9,1.14593447]
[1769131342898,1.14184744,2960.0,2958.9,1.14593447]
[1769131343097,0.2936361,2959.9,2958.9,1.14593447]
[1769131343292,0.2936361,2959.8,2958.9,1.14593447]
[1769131343493,0.2936361,2959.7,2958.9,1.14593447]
[1769131343794,0.15035869,2960.5,2958.9,1.14593447]
[1769131343988,0.84817752,2960.4,2958.9,1.14593447]
[1769131344193,0.84817752,2960.3,2958.9,1.14593447]
[1769131344395,0.84817752,2960.2,2958.9,1.14593447]
[1769131344695,0.84817752,2960.1,2958.9,1.14593447]
[1769131344896,0.84817752,2960.0,2958.9,1.14593447]
[1769131345098,0.84817752,2959.9,2958.9,1.14593447]
[1769131345299,0.15035869,2960.5,2958.9,1.14593447]
[1769131345496,0.84814816,2960.4,2959.0,0.13986704]
[1769131345702,0.84814816,2960.3,2959.0,0.13986704]
[1769131345900,0.84814816,2960.2,2959.0,0.13986704]
[1769131346100,0.84814816,2960.1,2959.0,0.13986704]
[1769131346305,0.84814816,2960.0,2959.0,0.13986704]
[1769131346603,0.15035869,2960.5,2959.0,0.13986704]
[1769131346803,0.84813351,2960.4,2959.0,0.13986704]
[1769131347003,0.84813351,2960.3,2959.0,0.13986704]
[1769131347203,0.84813351,2960.2,2959.0,0.13986704]
[1769131347504,0.84813351,2960.1,2959.0,0.13986704]
[1769131347704,0.84813351,2960.0,2959.0,0.13986704]
[1769131347908,0.15035869,2960.5,2959.0,0.13986704]
[1769131348101,0.84812469,2960.4,2959.0,0.13986704]
[1769131348404,0.84812469,2960.3,2959.0,0.13986704]
[1769131348604,0.84812469,2960.2,2959.0,0.13986704]
[1769131348804,0.84812469,2960.1,2959.0,0.13986704]
[1769131349005,0.84812469,2960.0,2959.0,0.13986704]
[1769131349195,0.15035869,2960.5,2959.0,0.13986704]
[1769131349394,0.99846994,2960.4,2959.0,0.13986704]
[1769131349605,0.84811125,2960.3,2959.0,0.13986704]
[1769131349805,0.99846994,2960.3,2958.9,1.00606743]
[1769131350006,0.84811125,2960.2,2958.9,1.00606743]
[1769131352310,0.98654696,2960.2,2958.9,1.00606743]
[1769131352607,0.84811125,2960.1,2958.9,1.00606743]
[1769131355605,0.29148087,2960.0,2958.9,1.00606743]
[1769131355805,0.13843571,2960.2,2958.9,1.00606743]
[1769131355806,0.29148087,2959.9,2958.9,1.00606743]
[1769131356009,0.29148087,2959.8,2958.9,1.00606743]
[1769131356308,0.13843571,2960.2,2958.9,1.00606743]
[1769131356510,1.14008516,2960.1,2958.9,1.00606743]
[1769131356810,1.14008516,2960.0,2958.9,1.00606743]
[1769131357113,0.29153989,2959.9,2958.9,1.00606743]
[1769131357313,0.13843571,2960.2,2958.9,1.00606743]
[1769131357314,0.29153989,2959.8,2958.9,1.00606743]
[1769131357516,0.13843571,2960.2,2958.9,1.00606743]
[1769131357714,1.14038092,2960.1,2958.9,1.00606743]
[1769131357915,1.14038092,2960.0,2958.9,1.00606743]
[1769131358115,1.14068358,2959.9,2958.9,1.00606743]
[1769131358417,0.29161606,2959.8,2958.9,1.00606743]
[1769131358614,0.29161606,2959.7,2958.9,1.00606743]
[1769131358815,0.13843571,2960.2,2958.9,1.00606743]
[1769131359117,1.14078903,2960.1,2958.9,1.00606743]
[1769131359315,1.14078903,2960.0,2958.9,1.00606743]
[1769131359515,1.14078903,2959.9,2958.9,1.00606743]
[1769131359722,0.2917214,2959.8,2958.9,1.00606743]
[1769131359916,0.2917214,2959.7,2958.9,1.00606743]
[1769131360116,0.13843571,2960.2,2958.9,1.00606743]
[1769131360316,1.14165042,2960.1,2958.9,1.00606743]
[1769131360519,1.14165042,2960.0,2958.7,2.40528387]
[1769131360716,1.14165042,2959.9,2958.7,2.40528387]
[1769131360916,1.14165042,2959.8,2958.7,2.40528387]
[1769131361116,0.29190844,2959.7,2958.7,2.40528387]
[1769131361416,0.29190844,2959.6,2958.7,2.40528387]
[1769131361616,0.13843571,2960.1,2958.7,2.40528387]
[1769131361812,1.142665,2960.0,2958.7,2.40528387]
[1769131362012,0.13843571,2959.8,2958.5,1.17523743]
[1769131362211,1.142665,2959.7,2958.5,1.17523743]
[1769131362415,1.142665,2959.6,2958.5,1.17523743]
[1769131362615,0.29195981,2959.5,2958.5,1.17523743]
[1769131362916,0.29195981,2959.4,2958.5,1.17523743]
[1769131363117,0.13843571,2959.8,2958.5,1.17523743]
[1769131363311,1.14238551,2959.7,2958.5,1.17523743]
[1769131363516,1.14238551,2959.6,2958.5,1.17523743]
[1769131363717,1.14238616,2959.5,2958.5,1.17523743]
[1769131363916,1.14238616,2959.4,2958.5,1.17523743]
[1769131364117,0.13843571,2959.8,2958.5,1.17523743]
[1769131364321,1.14225616,2959.7,2958.5,1.17523743]
[1769131364522,1.14225616,2959.6,2958.5,1.17523743]
[1769131364721,1.14225616,2959.5,2958.5,1.17523743]
[1769131364921,1.14225616,2959.4,2958.5,1.17523743]
[1769131365119,0.13843571,2959.8,2958.5,1.17523743]
[1769131365320,1.14215117,2959.7,2958.5,1.17523743]
[1769131365521,1.14215117,2959.6,2958.5,1.17523743]
[1769131365721,1.14215117,2959.5,2958.5,1.17523743]
[1769131366020,0.85029311,2959.4,2958.5,1.17523743]
[1769131366320,0.13843571,2959.8,2958.5,1.17523743]
[1769131366521,1.14203972,2959.7,2958.5,1.17523743]
[1769131366721,1.14203972,2959.6,2958.5,1.17523743]
[1769131366922,1.14203972,2959.5,2958.5,1.17523743]
[1769131367119,0.8502306,2959.4,2958.5,1.17523743]
[1769131367422,0.13843571,2959.8,2958.5,1.17523743]
[1769131367621,1.14196689,2959.7,2958.5,1.17523743]
[1769131367823,1.14196689,2959.6,2958.5,1.17523743]
[1769131368124,0.85017692,2959.5,2958.5,1.17523743]
[1769131368323,0.85017692,2959.4,2958.5,1.17523743]
[1769131368517,0.13843571,2959.8,2958.5,1.17523743]
[1769131368718,1.14189674,2959.7,2958.5,1.17523743]
[1769131369018,1.14189674,2959.6,2958.5,1.17523743]
[1769131369318,0.85012561,2959.5,2958.5,1.17523743]
[1769131369519,0.85012561,2959.4,2958.5,1.17523743]
[1769131369718,0.13843571,2959.8,2958.4,0.00360579]
[1769131369914,0.13843571,2959.6,2958.4,0.00360579]
[1769131370124,1.14187245,2959.5,2958.4,0.00360579]
[1769131370323,1.14187245,2959.4,2958.4,0.00360579]
[1769131370522,0.85010811,2959.3,2958.4,0.00360579]
[1769131370723,0.13843571,2959.6,2958.4,0.00360579]
[1769131371025,1.14175937,2959.5,2958.4,0.00360579]
[1769131371225,1.14175937,2959.4,2958.4,0.00360579]
[1769131371426,0.85002311,2959.3,2958.4,0.00360579]
[1769131371628,0.13843571,2959.6,2958.4,0.00360579]
[1769131371827,1.14162926,2959.5,2958.4,0.00360579]
[1769131372024,1.14162926,2959.4,2958.4,0.00360579]
[1769131372222,0.13843571,2959.6,2958.4,0.00360579]
[1769131372223,0.84992652,2959.3,2958.4,0.00360579]
[1769131372523,0.13843571,2959.6,2958.4,0.00360579]
[1769131372725,1.1415327,2959.5,2958.4,0.00360579]
[1769131372922,1.1415327,2959.4,2958.4,0.00360579]
[1769131373128,0.84985432,2959.3,2958.4,0.00360579]
[1769131373329,0.13843571,2959.6,2958.4,0.00360579]
[1769131373529,1.14143853,2959.5,2958.4,0.00360579]
[1769131373723,0.13843571,2959.6,2958.4,0.00360579]
[1769131373922,0.29165385,2959.5,2958.4,0.00360579]
[1769131374125,0.13843571,2959.6,2958.4,0.00360579]
[1769131374323,0.43008957,2959.5,2958.4,0.00360579]
[1769131374524,0.43008957,2959.4,2958.4,0.00360579]
[1769131374723,0.29164566,2959.3,2958.4,0.00360579]
[1769131374922,0.13843571,2959.4,2958.4,0.00360579]
[1769131375126,0.29164571,2959.3,2958.4,0.00360579]
[1769131375320,0.13843571,2959.4,2958.4,0.00360579]
[1769131375726,0.29160651,2959.3,2958.4,0.00360579]
[1769131375920,0.29160651,2959.2,2958.4,0.00360579]
[1769131376122,0.29160651,2959.1,2958.4,0.00360579]
[1769131376323,0.13843571,2959.4,2958.4,0.00360579]
[1769131376523,0.29157902,2959.3,2958.4,0.00360579]
[1769131376832,0.29157902,2959.2,2958.4,0.00360579]
[1769131377031,0.29157902,2959.1,2958.4,0.00360579]
[1769131377329,0.13843571,2959.3,2958.4,0.00360579]
[1769131377524,0.13843571,2959.1,2958.4,0.00360579]
[1769131377727,0.13843571,2958.9,2957.8,2.40528387]
[1769131378032,0.13843571,2958.9,2957.2,0.6378655]
[1769131378033,0.13843571,2958.7,2957.2,2.40528387]
[1769131378330,0.13843571,2958.5,2957.1,4.826]
[1769131378531,0.29155047,2958.4,2957.2,0.14470433]
[1769131378734,0.13843571,2959.6,2957.7,1.00606743]
[1769131379029,0.13843571,2959.4,2957.7,1.00606743]
[1769131379231,0.13843571,2959.2,2957.7,1.01003767]
[1769131379429,0.13843571,2959.0,2957.7,1.01003767]
[1769131379733,0.2912779,2958.9,2957.7,1.01003767]
[1769131379932,0.2912779,2958.8,2957.7,1.01003767]
[1769131380230,0.14195245,2959.4,2957.7,1.154742]
[1769131380533,0.98673312,2959.3,2957.7,1.154742]
[1769131380830,0.13843571,2959.3,2957.7,1.154742]
[1769131382335,0.13843571,2959.3,2957.7,1.01003767]
[1769131383735,0.14594711,2959.1,2957.7,0.00397024]
[1769131384834,0.14594711,2959.1,2958.1,0.00507527]
[1769131387538,0.14102096,2959.4,2958.1,1.0111427]
[1769131389537,0.00351674,2959.4,2958.1,1.0111427]
[1769131389736,0.00351674,2959.4,2958.1,1.15157123]
[1769131389936,0.14102096,2959.4,2958.1,1.0111427]
[1769131392033,0.14102096,2959.4,2958.1,0.00507527]
[1769131392234,0.13750422,2959.2,2958.1,0.00507527]
[1769131395644,0.28898753,2959.1,2958.1,0.00507527]
[1769131395830,0.13750422,2959.2,2958.1,0.00507527]
[1769131396031,0.28898747,2959.1,2958.1,0.00507527]
[1769131396241,0.13750422,2959.2,2958.1,0.00507527]
[1769131396438,0.28900478,2959.1,2958.1,0.00507527]
[1769131396638,0.13750422,2959.2,2958.1,0.00507527]
[1769131396834,0.28901617,2959.1,2958.2,1.00677352]
[1769131397040,0.13750422,2959.2,2958.2,1.00677352]
[1769131397240,0.28901618,2959.1,2958.2,1.00677352]
[1769131397441,0.13750422,2959.2,2958.2,1.00677352]
[1769131397638,0.28905089,2959.1,2958.2,1.00677352]
[1769131397845,0.13750422,2959.2,2958.2,1.00677352]
[1769131398045,0.42655567,2959.1,2958.2,1.00677352]
[1769131398339,0.28908288,2959.0,2958.2,1.00677352]
[1769131398535,0.13750422,2959.1,2958.2,1.00677352]
[1769131398737,0.28909433,2959.0,2958.2,1.00677352]
[1769131398937,0.13750422,2959.1,2958.2,1.00677352]
[1769131399240,0.28909429,2959.0,2958.2,1.00677352]
[1769131399442,0.13750422,2959.1,2958.2,1.00677352]
[1769131399642,0.28914565,2959.0,2958.2,1.00677352]
[1769131399942,0.13750422,2959.1,2958.2,1.00677352]
[1769131400242,0.28914563,2959.0,2958.2,1.00677352]
[1769131400438,0.13750422,2959.1,2958.2,1.00677352]
[1769131400642,0.28917843,2959.0,2958.2,1.00677352]
[1769131400843,0.13750422,2959.1,2958.2,1.00677352]
[1769131401044,0.42668264,2959.0,2958.2,1.00677352]
[1769131401244,0.14102096,2959.4,2958.2,1.00677352]
[1769131401446,1.13908564,2959.3,2958.2,1.00677352]
[1769131401643,1.13908564,2959.2,2958.5,1.00677352]
[1769131401837,0.2892025,2959.1,2958.5,1.00677352]
[1769131402043,0.14102096,2959.4,2958.5,1.00677352]
[1769131402243,1.13907571,2959.3,2958.5,1.00677352]
[1769131402443,0.00351674,2959.4,2958.8,1.00677352]
[1769131402645,0.28923741,2959.3,2958.8,1.00677352]
[1769131402847,0.00351674,2959.4,2958.8,1.00677352]
[1769131403048,0.28923046,2959.3,2958.8,1.00677352]
[1769131403346,0.00351674,2959.4,2958.8,1.00677352]
[1769131403538,0.28926664,2959.3,2958.8,1.00677352]
[1769131403746,0.85004009,2959.2,2958.8,1.00677352]
[1769131403952,0.85004009,2959.1,2958.8,1.00677352]
[1769131404144,0.00351674,2959.4,2958.8,1.00677352]
[1769131404447,1.13948335,2959.3,2958.5,1.00677352]
[1769131404639,1.13948335,2959.2,2958.5,1.00677352]
[1769131404840,0.00351674,2959.4,2958.5,1.00677352]
[1769131404841,0.85021025,2959.1,2958.5,1.00677352]
[1769131405041,0.00351674,2959.4,2958.5,1.00677352]
[1769131405242,1.13951963,2959.3,2958.5,1.00677352]
[1769131405442,1.13951963,2959.2,2958.5,1.00677352]
[1769131405738,0.00351674,2959.4,2958.5,1.00677352]
[1769131405739,0.85020411,2959.1,2958.5,1.00677352]
[1769131405943,0.00351674,2959.4,2958.5,1.00677352]
[1769131406145,1.13962218,2959.3,2958.5,1.00677352]
[1769131406343,1.13962218,2959.2,2958.5,1.00677352]
[1769131406548,0.85028101,2959.1,2958.5,1.00677352]
[1769131406742,0.00351674,2959.4,2958.5,1.00677352]
[1769131406943,1.13972367,2959.3,2958.5,1.00677352]
[1769131407249,0.85035775,2959.2,2958.8,1.00677352]
[1769131407445,0.85035775,2959.1,2958.5,1.00677352]
[1769131407647,0.00351674,2959.4,2958.5,1.00677352]
[1769131407847,1.13974927,2959.3,2958.5,1.00677352]
[1769131408044,1.13974927,2959.2,2958.5,1.00677352]
[1769131408245,0.85037499,2959.1,2958.5,1.00677352]
[1769131408549,0.85037499,2959.0,2958.5,1.00677352]
[1769131408846,0.00351674,2959.4,2958.5,1.00677352]
[1769131409045,1.14017495,2959.3,2958.5,1.00677352]
[1769131409246,1.14017495,2959.2,2958.5,1.00677352]
[1769131409446,1.14018723,2959.1,2958.5,1.00677352]
[1769131409646,0.85068962,2959.0,2958.5,1.00677352]
[1769131409848,0.00351674,2959.4,2958.5,1.00677352]
[1769131410147,1.14024609,2959.3,2958.5,1.00677352]
[1769131410342,1.14024609,2959.2,2958.5,1.00677352]
[1769131410543,1.14024609,2959.1,2958.5,1.00677352]
[1769131410745,0.85074144,2959.0,2958.5,1.00677352]
[1769131410946,0.14102096,2959.4,2958.5,1.00677352]
[1769131411146,1.14024414,2959.3,2958.5,1.00677352]
[1769131411445,1.14024414,2959.2,2958.5,1.00677352]
[1769131411646,1.14024414,2959.1,2958.5,1.00677352]
[1769131411847,0.85073945,2959.0,2958.5,1.00677352]
[1769131412052,0.14102096,2959.4,2958.5,1.00677352]
[1769131412344,1.29109034,2959.3,2958.5,1.00677352]
[1769131412550,1.14023374,2959.2,2958.5,1.00677352]
[1769131412751,1.14023374,2959.1,2958.5,1.00677352]
[1769131413050,0.85073125,2959.0,2958.5,1.00677352]
[1769131413242,0.1508566,2959.3,2958.2,1.00677352]
[1769131413445,0.1508566,2959.1,2958.1,0.00507527]
[1769131413647,1.14028036,2959.0,2958.2,1.00677352]
[1769131413846,0.1508566,2959.1,2958.2,1.00677352]
[1769131414049,0.28952694,2959.0,2958.2,1.00677352]
[1769131414249,0.00351674,2959.4,2958.2,1.00677352]
[1769131414450,1.14034286,2959.3,2958.2,1.00677352]
[1769131414647,0.28952264,2959.2,2958.2,1.00677352]
[1769131414846,0.28952264,2959.1,2958.2,1.00677352]
[1769131415053,0.28952264,2959.0,2958.2,1.00677352]
[1769131415250,0.15437334,2959.4,2958.2,1.00677352]
[1769131415450,1.14042368,2959.3,2958.2,1.00677352]
[1769131415650,0.28954226,2959.2,2958.2,1.00677352]
[1769131415953,0.28954226,2959.1,2958.2,1.00677352]
[1769131416258,0.15437334,2959.4,2958.2,1.00677352]
[1769131416443,1.14054216,2959.3,2958.2,1.00677352]
[1769131416649,0.28955924,2959.2,2958.2,1.00677352]
[1769131416848,0.28955924,2959.1,2958.2,1.00677352]
[1769131417050,0.15437334,2959.4,2958.2,1.00677352]
[1769131417354,1.29145049,2959.3,2958.2,1.00677352]
[1769131417556,1.14059389,2959.2,2958.2,1.00677352]
[1769131417857,0.28959825,2959.1,2958.2,1.00677352]
[1769131418046,0.28959825,2959.0,2958.2,1.00677352]
[1769131418249,0.1508566,2959.3,2958.2,1.00677352]
[1769131418452,1.14070609,2959.2,2958.2,1.00677352]
[1769131418653,0.28962805,2959.1,2958.2,1.00677352]
[1769131418855,0.28962805,2959.0,2958.2,1.00677352]
[1769131419153,0.1508566,2959.3,2958.2,1.00677352]
[1769131419353,1.14070105,2959.2,2958.2,1.00677352]
[1769131419558,0.28962676,2959.1,2958.2,1.00677352]
[1769131419756,0.28962676,2959.0,2958.2,1.00677352]
[1769131419958,0.1508566,2959.3,2958.2,1.00677352]
[1769131420154,1.14070339,2959.2,2958.2,1.00677352]
[1769131420358,0.28962909,2959.1,2958.2,1.00677352]
[1769131420559,0.28962909,2959.0,2958.2,1.00677352]
[1769131420757,0.1508566,2959.3,2958.2,1.00677352]
[1769131420961,0.1508566,2959.1,2958.1,0.00507527]
[1769131421162,0.4404978,2959.0,2958.1,0.00507527]
[1769131421364,0.2896412,2958.9,2958.1,0.00507527]
[1769131427979,0.28959339,2958.8,2958.1,0.00507527]
[1769131428275,0.28959339,2958.7,2958.1,0.00507527]
[1769131428477,0.28959339,2958.6,2958.1,0.00507527]
[1769131428668,0.1508566,2959.0,2958.1,0.00507527]
[1769131428874,0.28958822,2958.9,2958.1,0.00507527]
[1769131429074,0.28958822,2958.8,2958.1,0.00507527]
[1769131429274,0.28958822,2958.7,2958.1,0.00507527]
[1769131429475,0.28958822,2958.6,2958.1,0.00507527]
[1769131429670,0.1508566,2959.0,2958.1,0.00507527]
[1769131429882,0.28958311,2958.9,2958.1,0.00507527]
[1769131430181,0.28958311,2958.8,2958.1,0.00507527]
[1769131430374,0.28958311,2958.7,2958.1,0.00507527]
[1769131430574,0.28958311,2958.6,2958.1,0.00507527]
[1769131430776,0.1508566,2959.0,2958.1,0.00507527]
[1769131430976,0.28957818,2958.9,2958.1,0.00507527]
[1769131431274,0.28957818,2958.8,2958.1,0.00507527]
[1769131431471,0.28957818,2958.7,2958.1,0.00507527]
[1769131431774,0.28957818,2958.6,2958.1,0.00507527]
[1769131432083,0.1508566,2959.0,2958.1,0.00507527]
[1769131432280,0.4404294,2958.9,2958.1,0.00507527]
[1769131432480,0.2895728,2958.8,2958.1,0.00507527]
[1769131432780,0.2895728,2958.7,2958.1,0.00507527]
[1769131432984,0.2895728,2958.6,2958.1,0.00507527]
[1769131433282,0.1508566,2958.9,2958.1,0.00507527]
[1769131433483,0.28957633,2958.8,2958.1,0.00507527]
[1769131433679,0.28957633,2958.7,2958.1,0.00507527]
[1769131433881,0.28957633,2958.6,2958.1,0.00507527]
[1769131434080,0.1508566,2958.9,2958.1,0.00507527]
[1769131434283,0.28958134,2958.8,2958.1,0.00507527]
[1769131434585,0.28958134,2958.7,2958.1,0.00507527]
[1769131434783,0.28958134,2958.6,2958.1,0.00507527]
[1769131434984,0.1508566,2958.9,2958.1,0.00507527]
[1769131435187,0.28958806,2958.8,2958.1,0.00507527]
[1769131435482,0.28958806,2958.7,2958.1,0.00507527]
[1769131435686,0.1508566,2958.9,2958.1,0.00507527]
[1769131436788,0.2895932,2958.8,2958.1,0.00507527]
[1769131436988,0.1508566,2958.9,2958.1,0.00507527]
[1769131437191,0.28959355,2958.8,2958.1,0.00507527]
[1769131437390,0.1508566,2958.9,2958.1,0.00507527]
[1769131437688,0.28962114,2958.8,2958.1,0.00507527]
[1769131437888,0.1508566,2958.9,2958.1,0.00507527]
[1769131438085,0.28962117,2958.8,2958.1,0.00507527]
[1769131438283,0.1508566,2958.9,2958.1,0.00507527]
[1769131438587,0.28963904,2958.8,2958.1,0.00507527]
[1769131438787,0.1508566,2958.9,2958.1,0.00507527]
[1769131439087,0.28963865,2958.8,2958.1,0.00507527]
[1769131439284,0.1508566,2958.9,2958.1,0.00507527]
[1769131439482,0.2896613,2958.8,2958.1,0.00507527]
[1769131439682,0.1508566,2958.9,2958.1,0.00507527]
[1769131439883,0.28965669,2958.8,2958.1,0.00507527]
[1769131440087,0.1508566,2958.9,2958.2,1.00677352]
[1769131441391,0.1508566,2959.3,2958.5,1.00677352]
[1769131441686,0.28969169,2959.2,2958.5,1.00677352]
[1769131441880,0.14007111,2959.0,2958.1,0.00507527]
[1769131442182,0.14007111,2958.8,2958.1,0.00507527]
[1769131445492,0.28977805,2958.7,2958.1,0.00507527]
[1769131445686,0.14007111,2958.8,2958.1,0.00507527]
[1769131445881,0.29485296,2958.7,2958.1,0.00507527]
[1769131446082,0.00507527,2958.7,2958.1,0.00507527]
[1769131449592,0.15886588,2959.2,2958.2,1.00677352]
[1769131449793,0.44867282,2959.1,2958.2,1.00677352]
[1769131450092,0.28980694,2959.0,2958.2,1.00677352]
[1769131450293,0.28980694,2958.9,2958.2,1.00677352]
[1769131450498,0.28980694,2958.8,2958.2,1.00677352]
[1769131450801,0.15886588,2959.0,2958.2,1.00677352]
[1769131450992,0.28981856,2958.9,2958.2,1.00677352]
[1769131451188,0.28981856,2958.8,2958.2,1.00677352]
[1769131451389,0.15886588,2959.0,2958.2,1.00677352]
[1769131451589,0.2898186,2958.9,2958.2,1.00677352]
[1769131451896,0.2898186,2958.8,2958.2,1.00677352]
[1769131452194,0.15886588,2959.0,2958.2,1.00677352]
[1769131452398,1.1392392,2958.9,2958.2,1.00677352]
[1769131452600,0.2898186,2958.9,2958.2,1.00677352]
[1769131452799,0.15886588,2959.0,2958.2,1.00677352]
[1769131452996,0.8494206,2958.9,2958.2,1.00677352]
[1769131453195,0.15886588,2959.0,2958.2,1.00677352]
[1769131453390,0.84942039,2958.9,2958.2,1.00677352]
[1769131453595,0.15886588,2959.0,2958.2,1.00677352]
[1769131453801,0.84942039,2958.9,2958.2,1.00677352]
[1769131454004,1.13923386,2958.8,2958.2,1.00677352]
[1769131454198,0.84942506,2958.7,2958.2,1.00677352]
[1769131454403,0.15886588,2959.0,2958.2,1.00677352]
[1769131454702,1.13923418,2958.9,2958.2,1.00677352]
[1769131454900,1.13923418,2958.8,2958.2,1.00677352]
[1769131455199,0.15886588,2959.0,2958.2,1.00677352]
[1769131455400,1.13923467,2958.9,2958.2,1.00677352]
[1769131455596,0.84942106,2958.8,2958.2,1.00677352]
[1769131455796,0.15886588,2959.0,2958.2,1.00677352]
[1769131456102,1.13923487,2958.9,2958.2,1.00677352]
[1769131456301,1.13924227,2958.8,2958.2,1.00677352]
[1769131456498,0.84942108,2958.7,2958.2,1.00677352]
[1769131456699,0.15886588,2958.7,2958.2,1.00677352]
[1769131456898,0.15886588,2958.7,2958.1,0.00507527]
[1769131461304,0.15886588,2959.3,2958.1,0.00507527]
[1769131461504,1.29808522,2959.2,2958.1,0.00507527]
[1769131461703,1.13922047,2959.1,2958.1,0.00507527]
[1769131461903,1.13922047,2959.0,2958.1,0.00507527]
[1769131462102,1.13922047,2958.9,2958.1,0.00507527]
[1769131462302,0.8494095,2958.8,2958.1,0.00507527]
[1769131462502,0.15886588,2959.2,2958.1,0.00507527]
[1769131462705,1.13918372,2959.1,2958.1,0.00507527]
[1769131462905,0.84937901,2959.0,2958.1,0.00507527]
[1769131463106,0.15886588,2959.2,2958.1,0.00507527]
[1769131463407,1.13887449,2959.1,2958.1,0.00507527]
[1769131463609,0.84909603,2959.0,2958.1,0.00507527]
[1769131463908,0.15886588,2959.2,2958.1,0.00507527]
[1769131464103,0.15886588,2959.2,2958.3,2.42448488]
[1769131466412,0.00351674,2959.4,2958.3,2.42448488]
[1769131466608,0.28960575,2959.3,2958.3,2.42448488]
[1769131466809,0.28960575,2959.2,2958.3,2.42448488]
[1769131467010,0.00351674,2959.4,2958.4,3.43137757]
[1769131467212,0.15886588,2960.3,2958.7,2.42448488]
[1769131467412,0.15886588,2960.1,2958.7,2.42448488]
[1769131467612,1.29653293,2960.0,2958.7,2.42448488]
[1769131467815,0.44844179,2959.9,2958.7,2.42448488]
[1769131468110,0.28957591,2959.8,2958.6,2.42448488]
[1769131468413,0.28957591,2959.7,2958.6,2.42448488]
[1769131468615,0.15886588,2959.9,2958.6,2.42448488]
[1769131468912,0.28927624,2959.8,2958.6,2.42448488]
[1769131469112,0.28927624,2959.7,2958.6,2.42448488]
[1769131469313,0.15886588,2959.9,2958.6,2.42448488]
[1769131469520,0.28918197,2959.8,2958.6,2.42448488]
[1769131469812,0.15886588,2959.9,2958.6,2.42448488]
[1769131470006,0.28917287,2959.8,2958.6,2.42448488]
[1769131470202,0.15886588,2959.9,2958.6,2.42448488]
[1769131470409,0.2891728,2959.8,2958.6,2.42448488]
[1769131470603,0.15886588,2959.9,2958.6,2.42448488]
[1769131470814,0.28910162,2959.8,2958.6,2.42448488]
[1769131471016,0.15886588,2959.9,2958.6,2.42448488]
[1769131471217,0.28910153,2959.8,2958.6,2.42448488]
[1769131471410,0.15886588,2959.9,2958.6,2.42448488]
[1769131471706,0.28904506,2959.8,2958.6,2.42448488]
[1769131471905,0.15886588,2959.9,2958.6,2.42448488]
[1769131472107,0.43884098,2959.8,2958.6,2.42448488]
[1769131472309,0.14981024,2959.7,2958.6,2.42448488]
[1769131474017,0.14981024,2959.7,2958.4,3.43137757]
[1769131474923,0.14981024,2959.7,2958.4,1.00689269]
[1769131489724,0.14981024,2959.7,2958.2,2.42448488]
[1769131489924,0.14981024,2959.5,2958.3,4.871]
[1769131492728,2.43667146,2960.3,2958.4,1.00689269]
[1769131492932,0.14981024,2959.9,2958.4,1.00689269]
[1769131493133,1.28789383,2959.8,2958.4,1.00689269]
[1769131493330,1.13808359,2959.7,2958.4,1.00689269]
[1769131493535,1.13808359,2959.6,2958.4,1.00689269]
[1769131493834,0.8486609,2959.5,2958.4,1.00689269]
[1769131494135,0.14981024,2959.8,2958.5,2.42448488]
[1769131494337,0.28946785,2959.7,2958.5,2.42448488]
[1769131494532,0.28946785,2959.6,2958.5,2.42448488]
[1769131494733,0.14981024,2959.8,2958.5,2.42448488]
[1769131495034,0.28951398,2959.7,2958.5,2.42448488]
[1769131495330,0.28951398,2959.6,2958.5,2.42448488]
[1769131495525,0.14981024,2959.8,2958.5,2.42448488]
[1769131495721,0.28957396,2959.7,2958.5,2.42448488]
[1769131495923,0.28957396,2959.6,2958.5,2.42448488]
[1769131496127,0.28957396,2959.5,2958.5,2.42448488]
[1769131496336,0.28957396,2959.4,2958.5,2.42448488]
[1769131496538,0.28957396,2959.3,2958.5,2.42448488]
[1769131496738,0.14981024,2959.8,2958.5,2.42448488]
[1769131497040,0.14981024,2959.6,2958.4,2.42448488]
[1769131497335,0.14981024,2959.4,2958.1,2.42956015]
[1769131497534,0.14981024,2959.2,2958.1,0.00507527]
[1769131497730,0.14981024,2959.0,2958.1,0.00507527]
[1769131497930,0.28965165,2958.9,2958.1,0.00507527]
[1769131498134,0.14981024,2959.0,2958.1,0.00507527]
[1769131498436,0.28957468,2958.9,2958.1,0.00507527]
[1769131498636,0.14981024,2959.0,2958.1,0.00507527]
[1769131498826,0.28946839,2958.9,2958.1,0.00507527]
[1769131499030,0.14981024,2959.0,2958.1,0.00507527]